lending/lending_fUSD_20250122
["ID","MTS","AMOUNT","RATE_DAILY","PERIOD"]
[349974713,1737544245064,-500.0,0.00019984,2]
[349974714,1737544245073,-563.44,0.00019984,2]
[349974715,1737544245082,-547.53,0.00019984,2]
[349974716,1737544245091,-500.0,0.00019984,2]
[349974717,1737544245100,-500.0,0.00019984,2]
[349974718,1737544245109,-500.0,0.00019984,2]
[349974719,1737544245118,-500.0,0.00019984,2]
[349974720,1737544245127,-500.0,0.00019984,2]
[349974721,1737544245136,-1064.14,0.00019984,2]
[349974722,1737544245145,-1346.49,0.00019984,2]
[349974723,1737544245154,-500.0,0.00019984,2]
[349974724,1737544245164,-1446.81,0.00019984,2]
[349974725,1737544245175,-500.0,0.00019984,2]
[349974726,1737544245185,-1423.33,0.00019984,2]
[349974727,1737544245194,-500.0,0.00019984,2]
[349974728,1737544245204,-673.17,0.00019984,2]
[349974729,1737544245213,-1277.28,0.00019984,2]
[349974730,1737544245223,-3493.01,0.00019984,2]
[349974731,1737544245232,-6194.12,0.00019984,2]
[349974732,1737544245241,-587.51,0.00019984,2]
[349974733,1737544245250,-500.0,0.00019984,2]
[349974734,1737544245260,-529.42,0.00019984,2]
[349974735,1737544245269,-861.1,0.00019984,2]
[349974736,1737544245279,-344.23776851,0.00019984,2]
[349974737,1737544245288,-3060.79,0.00019984,2]
[349974738,1737544245297,-500.0,0.00019984,2]
[349974739,1737544245307,-1104.71,0.00019984,2]
[349974740,1737544245316,-688.4,0.00019984,2]
[349974741,1737544245325,-1692.46,0.00019984,2]
[349974742,1737544245335,-500.0,0.00019984,2]
[349974743,1737544245345,-500.0,0.00019984,2]
[349974744,1737544245354,-850.91,0.00019984,2]
[349974745,1737544245364,-915.1,0.00019984,2]
[349974746,1737544245373,-500.0,0.00019984,2]
[349974747,1737544245383,-1215.45,0.00019984,2]
[349974748,1737544245392,-1180.35,0.00019984,2]
[349974749,1737544245401,-1251.06,0.00019984,2]
[349974750,1737544245411,-500.0,0.00019984,2]
[349974751,1737544245421,-544.82,0.00019984,2]
[349974752,1737544245431,-500.0,0.00019984,2]
[349974753,1737544245440,-1741.37,0.00019984,2]
[349974754,1737544245450,-1000.0,0.00019984,2]
[349974755,1737544245460,-450.06,0.00019984,2]
[349974756,1737544245470,-841.18,0.00019984,2]
[349974757,1737544245479,-631.49,0.00019984,2]
[349974758,1737544245489,-555.75,0.00019984,2]
[349974759,1737544245498,-500.0,0.00019984,2]
[349974760,1737544245507,-500.0,0.00019984,2]
[349974761,1737544245517,-500.0,0.00019984,2]
[349974762,1737544245526,-500.0,0.00019984,2]
[349974763,1737544245535,-1820.67,0.00019984,2]
[349974764,1737544245545,-667.15,0.00019984,2]
[349974765,1737544245557,-1458.6,0.00019984,2]
[349974766,1737544245566,-500.0,0.00019984,2]
[349974767,1737544245575,-500.0,0.00019984,2]
[349974768,1737544245584,-595.65,0.00019984,2]
[349974769,1737544245594,-500.0,0.00019984,2]
[349974770,1737544245603,-500.0,0.00019984,2]
[349974771,1737544245612,-500.0,0.00019984,2]
[349974772,1737544245623,-500.0,0.00019984,2]
[349974773,1737544245633,-1077.95,0.00019984,2]
[349974774,1737544245642,-500.0,0.00019985,2]
[349974775,1737544245652,-500.0,0.00019985,2]
[349974776,1737544245661,-300.29194827,0.00019985,2]
[349974777,1737544245670,-500.0,0.00019985,2]
[349974778,1737544245679,-500.0,0.00019985,2]
[349974779,1737544245688,-500.0,0.00019985,2]
[349974780,1737544245697,-500.0,0.00019985,2]
[349974781,1737544245708,-500.0,0.00019985,2]
[349974782,1737544245717,-500.0,0.00019985,2]
[349974783,1737544245726,-653.14,0.00019985,2]
[349974784,1737544245735,-500.0,0.00019985,2]
[349974785,1737544245745,-500.0,0.00019985,2]
[349974786,1737544245754,-500.0,0.00019985,2]
[349974787,1737544245764,-500.0,0.00019985,2]
[349974788,1737544245774,-500.0,0.00019985,2]
[349974789,1737544245783,-566.39,0.00019985,2]
[349974790,1737544245791,-500.0,0.00019985,2]
[349974791,1737544245800,-500.0,0.00019985,2]
[349974792,1737544245809,-523.7,0.00019985,2]
[349974793,1737544245818,-500.0,0.00019985,2]
[349974794,1737544245827,-500.0,0.00019985,2]
[349974795,1737544245836,-500.0,0.00019985,2]
[349974796,1737544245846,-500.0,0.00019985,2]
[349974797,1737544245855,-500.0,0.00019985,2]
[349974798,1737544245864,-500.0,0.00019985,2]
[349974799,1737544245873,-500.0,0.00019985,2]
[349974800,1737544245882,-437.813825,0.00019985,2]
[349974801,1737544245891,-500.0,0.00019985,2]
[349974802,1737544245900,-500.0,0.00019985,2]
[349974803,1737544245909,-500.0,0.00019985,2]
[349974804,1737544245918,-500.0,0.00019985,2]
[349974805,1737544245927,-502.03,0.00019985,2]
[349974806,1737544245936,-500.0,0.00019985,2]
[349974807,1737544245945,-607.34,0.00019985,2]
[349974808,1737544245954,-500.0,0.00019985,2]
[349974809,1737544245963,-705.95,0.00019985,2]
[349974810,1737544245972,-500.0,0.00019985,2]
[349974811,1737544245980,-500.0,0.00019985,2]
[349974812,1737544245989,-500.0,0.00019985,2]
[349974813,1737544245999,-500.0,0.00019985,2]
[349974814,1737544246008,-500.0,0.00019985,2]
[349974815,1737544246017,-627.97,0.00019985,2]
[349974816,1737544246026,-500.0,0.00019985,2]
[349974817,1737544246035,-500.0,0.00019985,2]
[349974818,1737544246045,-707.28,0.00019985,2]
[349974819,1737544246054,-525.43,0.00019985,2]
[349974820,1737544246063,-513.36,0.00019985,2]
[349974821,1737544246071,-788.76,0.00019985,2]
[349974822,1737544246080,-500.0,0.00019985,2]
[349974823,1737544246089,-678.5,0.00019985,2]
[349974824,1737544246098,-500.0,0.00019985,2]
[349974825,1737544246107,-500.0,0.00019985,2]
[349974826,1737544246117,-500.0,0.00019985,2]
[349974827,1737544246126,-500.0,0.00019985,2]
[349974828,1737544246135,-500.0,0.00019985,2]
[349974829,1737544246144,-607.77,0.00019985,2]
[349974830,1737544246153,-500.0,0.00019985,2]
[349974831,1737544246162,-500.0,0.00019985,2]
[349974832,1737544246172,-500.0,0.00019985,2]
[349974833,1737544246182,-731.64,0.00019985,2]
[349974834,1737544246191,-500.0,0.00019985,2]
[349974835,1737544246200,-500.0,0.00019985,2]
[349974836,1737544246209,-500.0,0.00019985,2]
[349974837,1737544246218,-755.79,0.00019985,2]
[349974838,1737544246227,-500.0,0.00019985,2]
[349974839,1737544246237,-927.77,0.00019985,2]
[349974840,1737544246245,-500.0,0.00019985,2]
[349974841,1737544246255,-500.0,0.00019985,2]
[349974842,1737544246265,-500.0,0.00019985,2]
[349974843,1737544246274,-500.0,0.00019985,2]
[349974844,1737544246283,-500.0,0.00019985,2]
[349974845,1737544246292,-500.0,0.00019985,2]
[349974846,1737544246301,-961.27,0.00019985,2]
[349974847,1737544246311,-735.58,0.00019985,2]
[349974848,1737544246320,-795.2,0.00019985,2]
[349974849,1737544246329,-819.06,0.00019985,2]
[349974850,1737544246339,-500.0,0.00019985,2]
[349974851,1737544246348,-500.0,0.00019985,2]
[349974852,1737544246358,-205.52649876,0.00020011,2]
[349974853,1737544246367,-154.04,0.00020079,2]
[349974854,1737544246376,-868.13926994,0.00020117,2]
[349974855,1737544246385,-205.52649876,0.00020122,2]
[349974856,1737544246394,-9999.99,0.00020145,2]
[349974857,1737544246403,-150.99,0.00020145,2]
[349974858,1737544246413,-528.81262902,0.00020158,2]
[349974859,1737544246423,-205.52649876,0.00020233,2]
[349974860,1737544246433,-982.04,0.00020247,2]
[349974861,1737544246442,-437.55,0.00020247,2]
[349974862,1737544246451,-150.0,0.00020247,2]
[349974863,1737544246460,-500.0,0.00020256,2]
[349974864,1737544246470,-2182.9,0.00020256,2]
[349974865,1737544246480,-845.32,0.00020256,2]
[349974866,1737544246489,-1694.78,0.00020256,2]
[349974867,1737544246498,-595.89,0.00020256,2]
[349974868,1737544246508,-1253.31,0.00020256,2]
[349974869,1737544246517,-827.150126,0.00020256,2]
[349974870,1737544246526,-500.0,0.00020256,2]
[349974871,1737544246536,-1250.55,0.00020256,2]
[349974872,1737544246547,-500.0,0.00020256,2]
[349974873,1737544246556,-948.66,0.00020256,2]
[349974874,1737544246565,-1031.4948883,0.00020256,5]
[349974875,1737544246575,-870.05,0.00020256,2]
[349974876,1737544246584,-472.832605,0.00020256,2]
[349974877,1737544246593,-1331.81,0.00020256,2]
[349974878,1737544246602,-951.0,0.00020256,2]
[349974879,1737544246612,-1891.85,0.00020256,2]
[349974880,1737544246622,-944.43,0.00020256,2]
[349974881,1737544246631,-882.71,0.00020256,2]
[349974882,1737544246640,-3034.15,0.00020256,2]
[349974883,1737544246650,-1398.26,0.00020256,2]
[349974884,1737544246659,-707.77,0.00020256,2]
[349974885,1737544246668,-856.43,0.00020256,2]
[349974888,1737544246823,-2179.04,0.00020256,2]
[349974889,1737544246833,-3079.91,0.00020256,2]
[349974890,1737544246842,-500.0,0.00020256,2]
[349974891,1737544246851,-960.99,0.00020256,2]
[349974892,1737544246861,-876.18,0.00020256,2]
[349974893,1737544246870,-3241.6,0.00020256,2]
[349974894,1737544246880,-926.24,0.00020256,2]
[349974895,1737544246888,-157.570432,0.00020256,2]
[349974896,1737544246897,-1009.16,0.00020256,2]
[349974897,1737544246906,-571.27,0.00020257,2]
[349974898,1737544246915,-500.0,0.00020257,2]
[349974899,1737544246925,-500.0,0.00020257,2]
[349974900,1737544246934,-500.0,0.00020257,2]
[349974901,1737544246943,-500.0,0.00020257,2]
[349974902,1737544246953,-500.0,0.00020257,2]
[349974903,1737544246962,-500.0,0.00020257,2]
[349974904,1737544246971,-601.73,0.00020257,2]
[349974905,1737544246980,-500.0,0.00020257,2]
[349974906,1737544246989,-500.0,0.00020257,2]
[349974907,1737544246998,-500.0,0.00020257,2]
[349974908,1737544247006,-500.0,0.00020257,2]
[349974909,1737544247016,-716.83,0.00020257,2]
[349974910,1737544247025,-500.0,0.00020257,2]
[349974911,1737544247034,-500.0,0.00020257,2]
[349974912,1737544247043,-757.92,0.00020257,2]
[349974913,1737544247051,-500.0,0.00020257,2]
[349974914,1737544247060,-500.0,0.00020257,2]
[349974915,1737544247070,-523.71,0.00020257,2]
[349974916,1737544247080,-500.0,0.00020257,2]
[349974917,1737544247089,-786.76,0.00020257,2]
[349974918,1737544247098,-518.21,0.00020257,2]
[349974919,1737544247108,-500.0,0.00020257,2]
[349974920,1737544247117,-500.0,0.00020257,2]
[349974921,1737544247127,-624.23,0.00020257,2]
[349974922,1737544247137,-500.0,0.00020257,2]
[349974923,1737544247147,-500.0,0.00020257,2]
[349974924,1737544247158,-500.0,0.00020257,2]
[349974925,1737544247168,-500.0,0.00020257,2]
[349974926,1737544247177,-500.0,0.00020257,2]
[349974927,1737544247186,-500.0,0.00020257,2]
[349974928,1737544247195,-500.0,0.00020257,2]
[349974929,1737544247204,-500.0,0.00020257,2]
[349974930,1737544247213,-246.87975232,0.00020257,2]
[349974931,1737544247223,-500.0,0.00020257,2]
[349974932,1737544247232,-500.0,0.00020257,2]
[349974933,1737544247242,-545.73,0.00020257,2]
[349974934,1737544247251,-500.0,0.00020257,2]
[349974935,1737544247261,-500.0,0.00020257,2]
[349974936,1737544247270,-500.0,0.00020257,2]
[349974937,1737544247279,-500.0,0.00020257,2]
[349974938,1737544247290,-500.0,0.00020257,2]
[349974939,1737544247300,-1389.85,0.00020257,2]
[349974940,1737544247309,-1961.32,0.00020257,2]
[349974941,1737544247318,-500.0,0.00020257,2]
[349974942,1737544247327,-1067.75,0.00020257,2]
[349974943,1737544247337,-500.0,0.00020257,2]
[349974944,1737544247346,-670.3,0.00020257,2]
[349974945,1737544247355,-1183.57,0.00020257,2]
[349974946,1737544247365,-500.0,0.00020257,2]
[349974947,1737544247374,-500.0,0.00020257,2]
[349974948,1737544247384,-552.88,0.00020257,2]
[349974949,1737544247393,-500.0,0.00020257,2]
[349974950,1737544247402,-3493.48,0.00020257,2]
[349974951,1737544247412,-666.26,0.00020257,2]
[349974952,1737544247422,-891.95,0.00020257,2]
[349974953,1737544247431,-206.65399869,0.00020257,2]
[349974954,1737544247440,-1711.53,0.00020257,2]
[349974955,1737544247449,-500.0,0.00020257,2]
[349974956,1737544247458,-831.2,0.00020257,2]
[349974957,1737544247467,-500.0,0.00020257,2]
[349974958,1737544247476,-500.0,0.00020257,2]
[349974959,1737544247486,-500.0,0.00020257,2]
[349974960,1737544247496,-867.17,0.00020257,2]
[349974961,1737544247505,-500.0,0.00020257,2]
[349974962,1737544247515,-500.0,0.00020257,2]
[349974963,1737544247524,-1937.38,0.00020257,2]
[349974964,1737544247536,-1747.6,0.00020257,2]
[349974965,1737544247546,-500.0,0.00020257,2]
[349974966,1737544247560,-654.02,0.00020257,2]
[349974967,1737544247570,-1183.36,0.00020257,2]
[349974968,1737544247579,-500.0,0.00020257,2]
[349974969,1737544247589,-617.6,0.00020257,2]
[349974970,1737544247598,-1259.57,0.00020257,2]
[349974971,1737544247607,-500.0,0.00020257,2]
[349974972,1737544247617,-566.96,0.00020257,2]
[349974973,1737544247627,-500.0,0.00020257,2]
[349974974,1737544247637,-500.0,0.00020257,2]
[349974975,1737544247647,-500.0,0.00020257,2]
[349974976,1737544247657,-500.0,0.00020257,2]
[349974977,1737544247666,-1756.24,0.00020257,2]
[349974978,1737544247675,-500.0,0.00020257,2]
[349974979,1737544247684,-1945.8,0.00020257,2]
[349974980,1737544247693,-500.0,0.00020257,2]
[349974981,1737544247702,-525.15,0.00020257,2]
[349974982,1737544247711,-688.72,0.00020257,2]
[349974983,1737544247720,-500.0,0.00020257,2]
[349974984,1737544247729,-500.0,0.00020257,2]
[349974985,1737544247738,-500.0,0.00020257,2]
[349974986,1737544247747,-1464.22,0.00020257,2]
[349974987,1737544247757,-500.0,0.00020257,2]
[349974988,1737544247767,-517.38,0.00020257,2]
[349974989,1737544247777,-573.63,0.00020257,2]
[349974990,1737544247786,-500.0,0.00020258,2]
[349974991,1737544247795,-500.0,0.00020258,2]
[349974992,1737544247804,-500.0,0.00020258,2]
[349974993,1737544247813,-500.0,0.00020258,2]
[349974994,1737544247822,-500.0,0.00020258,2]
[349974995,1737544247832,-500.0,0.00020258,2]
[349974996,1737544247841,-500.0,0.00020258,2]
[349974997,1737544247851,-627.08,0.00020258,2]
[349974998,1737544247860,-500.0,0.00020258,2]
[349974999,1737544247870,-500.0,0.00020258,2]
[349975000,1737544247879,-500.0,0.00020258,2]
[349975001,1737544247888,-738.07,0.00020258,2]
[349975002,1737544247898,-500.0,0.00020258,2]
[349975003,1737544247907,-500.0,0.00020258,2]
[349975004,1737544247916,-500.0,0.00020258,2]
[349975005,1737544247925,-500.0,0.00020258,2]
[349975006,1737544247935,-500.0,0.00020258,2]
[349975007,1737544247945,-500.0,0.00020258,2]
[349975008,1737544247954,-563.44,0.00020258,2]
[349975009,1737544247963,-547.53,0.00020258,2]
[349975010,1737544247974,-500.0,0.00020258,2]
[349975011,1737544247983,-500.0,0.00020258,2]
[349975012,1737544247992,-500.0,0.00020258,2]
[349975013,1737544248002,-500.0,0.00020258,2]
[349975014,1737544248011,-500.0,0.00020258,2]
[349975015,1737544248020,-1064.14,0.00020258,2]
[349975016,1737544248030,-1346.49,0.00020258,2]
[349975017,1737544248040,-1446.81,0.00020258,2]
[349975018,1737544248049,-500.0,0.00020258,2]
[349975019,1737544248058,-1423.33,0.00020258,2]
[349975020,1737544248068,-500.0,0.00020258,2]
[349975021,1737544248078,-673.17,0.00020258,2]
[349975022,1737544248088,-1277.28,0.00020258,2]
[349975023,1737544248097,-3493.01,0.00020258,2]
[349975024,1737544248107,-6194.12,0.00020258,2]
[349975025,1737544248116,-587.51,0.00020258,2]
[349975026,1737544248125,-500.0,0.00020258,2]
[349975027,1737544248134,-529.42,0.00020258,2]
[349975028,1737544248144,-861.1,0.00020258,2]
[349975029,1737544248153,-3060.79,0.00020258,2]
[349975030,1737544248162,-500.0,0.00020258,2]
[349975031,1737544248172,-1104.71,0.00020258,2]
[349975032,1737544248182,-688.4,0.00020258,2]
[349975033,1737544248192,-1692.46,0.00020258,2]
[349975034,1737544248202,-500.0,0.00020258,2]
[349975035,1737544248211,-500.0,0.00020258,2]
[349975036,1737544248221,-850.91,0.00020258,2]
[349975037,1737544248236,-915.1,0.00020258,2]
[349975038,1737544248246,-500.0,0.00020258,2]
[349975039,1737544248255,-1215.45,0.00020258,2]
[349975040,1737544248265,-1180.35,0.00020258,2]
[349975041,1737544248274,-1251.06,0.00020258,2]
[349975042,1737544248284,-544.82,0.00020258,2]
[349975043,1737544248294,-500.0,0.00020258,2]
[349975044,1737544248303,-1741.37,0.00020258,2]
[349975045,1737544248312,-1000.0,0.00020258,2]
[349975046,1737544248322,-841.18,0.00020258,2]
[349975047,1737544248331,-631.49,0.00020258,2]
[349975048,1737544248342,-555.75,0.00020258,2]
[349975049,1737544248351,-500.0,0.00020258,2]
[349975050,1737544248361,-500.0,0.00020258,2]
[349975051,1737544248371,-500.0,0.00020258,2]
[349975052,1737544248380,-1820.67,0.00020258,2]
[349975053,1737544248390,-667.15,0.00020258,2]
[349975054,1737544248399,-1458.6,0.00020258,2]
[349975055,1737544248409,-500.0,0.00020258,2]
[349975056,1737544248418,-500.0,0.00020258,2]
[349975057,1737544248427,-595.65,0.00020258,2]
[349975058,1737544248436,-500.0,0.00020258,2]
[349975059,1737544248446,-500.0,0.00020258,2]
[349975060,1737544248459,-500.0,0.00020258,2]
[349975061,1737544248469,-500.0,0.00020258,2]
[349975062,1737544248479,-1077.95,0.00020258,2]
[349975063,1737544248489,-500.0,0.00020259,2]
[349975064,1737544248498,-500.0,0.00020259,2]
[349975065,1737544248508,-500.0,0.00020259,2]
[349975066,1737544248518,-500.0,0.00020259,2]
[349975067,1737544248527,-500.0,0.00020259,2]
[349975068,1737544248537,-500.0,0.00020259,2]
[349975069,1737544248548,-500.0,0.00020259,2]
[349975070,1737544248561,-653.14,0.00020259,2]
[349975071,1737544248570,-500.0,0.00020259,2]
[349975072,1737544248580,-500.0,0.00020259,2]
[349975073,1737544248591,-500.0,0.00020259,2]
[349975074,1737544248601,-441.76230218,0.00020259,2]
[349975075,1737544248611,-500.0,0.00020259,2]
[349975076,1737544248620,-566.39,0.00020259,2]
[349975077,1737544248630,-500.0,0.00020259,2]
[349975078,1737544248639,-500.0,0.00020259,2]
[349975079,1737544248649,-523.7,0.00020259,2]
[349975080,1737544248659,-500.0,0.00020259,2]
[349975081,1737544248668,-500.0,0.00020259,2]
[349975082,1737544248678,-500.0,0.00020259,2]
[349975083,1737544248688,-500.0,0.00020259,2]
[349975084,1737544248698,-500.0,0.00020259,2]
[349975085,1737544248707,-500.0,0.00020259,2]
[349975086,1737544248717,-500.0,0.00020259,2]
[349975087,1737544248726,-500.0,0.00020259,2]
[349975088,1737544248736,-500.0,0.00020259,2]
[349975089,1737544248745,-502.03,0.00020259,2]
[349975090,1737544248755,-500.0,0.00020259,2]
[349975091,1737544248765,-607.34,0.00020259,2]
[349975092,1737544248774,-500.0,0.00020259,2]
[349975093,1737544248783,-705.95,0.00020259,2]
[349975094,1737544248793,-500.0,0.00020259,2]
[349975095,1737544248803,-500.0,0.00020259,2]
[349975096,1737544248812,-500.0,0.00020259,2]
[349975097,1737544248822,-500.0,0.00020259,2]
[349975098,1737544248831,-627.97,0.00020259,2]
[349975099,1737544248841,-500.0,0.00020259,2]
[349975100,1737544248851,-500.0,0.00020259,2]
[349975101,1737544248860,-707.28,0.00020259,2]
[349975102,1737544248869,-525.43,0.00020259,2]
[349975103,1737544248879,-513.36,0.00020259,2]
[349975104,1737544248888,-788.76,0.00020259,2]
[349975105,1737544248897,-500.0,0.00020259,2]
[349975106,1737544248907,-678.5,0.00020259,2]
[349975107,1737544248916,-500.0,0.00020259,2]
[349975108,1737544248926,-500.0,0.00020259,2]
[349975109,1737544248937,-500.0,0.00020259,2]
[349975110,1737544248946,-500.0,0.00020259,2]
[349975111,1737544248955,-500.0,0.00020259,2]
[349975112,1737544248966,-607.77,0.00020259,2]
[349975113,1737544248975,-500.0,0.00020259,2]
[349975114,1737544248985,-500.0,0.00020259,2]
[349975115,1737544248994,-500.0,0.00020259,2]
[349975116,1737544249004,-731.64,0.00020259,2]
[349975117,1737544249013,-500.0,0.00020259,2]
[349975118,1737544249023,-500.0,0.00020259,2]
[349975119,1737544249032,-500.0,0.00020259,2]
[349975120,1737544249042,-755.79,0.00020259,2]
[349975121,1737544249052,-500.0,0.00020259,2]
[349975122,1737544249061,-927.77,0.00020259,2]
[349975123,1737544249071,-500.0,0.00020259,2]
[349975124,1737544249080,-500.0,0.00020259,2]
[349975125,1737544249090,-500.0,0.00020259,2]
[349975126,1737544249100,-500.0,0.00020259,2]
[349975127,1737544249109,-500.0,0.00020259,2]
[349975128,1737544249119,-961.27,0.00020259,2]
[349975129,1737544249128,-735.58,0.00020259,2]
[349975130,1737544249138,-795.2,0.00020259,2]
[349975131,1737544249147,-819.06,0.00020259,2]
[349975132,1737544249156,-500.0,0.00020259,2]
[349975133,1737544249165,-500.0,0.00020259,2]
[349975134,1737544249175,-151.08149732,0.00020273,2]
[349975135,1737544249184,-205.52649876,0.00020344,2]
[349975136,1737544249194,-868.13926994,0.00020372,2]
[349975137,1737544249203,-205.52649876,0.00020456,2]
[349975138,1737544249212,-528.81262902,0.00020529,2]
[349975139,1737544249221,-500.0,0.0002053,2]
[349975140,1737544249231,-2182.9,0.0002053,2]
[349975141,1737544249240,-845.32,0.0002053,2]
[349975142,1737544249250,-1694.78,0.0002053,2]
[349975143,1737544249260,-595.89,0.0002053,2]
[349975144,1737544249270,-1253.31,0.0002053,2]
[349975145,1737544249280,-827.150126,0.0002053,2]
[349975146,1737544249289,-1250.55,0.0002053,2]
[349975147,1737544249299,-500.0,0.0002053,2]
[349975148,1737544249308,-948.66,0.0002053,2]
[349975149,1737544249318,-870.05,0.0002053,2]
[349975150,1737544249327,-472.832605,0.0002053,2]
[349975151,1737544249336,-1331.81,0.0002053,2]
[349975152,1737544249345,-951.0,0.0002053,2]
[349975153,1737544249355,-1891.85,0.0002053,2]
[349975154,1737544249364,-944.43,0.0002053,2]
[349975155,1737544249374,-882.71,0.0002053,2]
[349975156,1737544249383,-3034.15,0.0002053,2]
[349975157,1737544249393,-1398.26,0.0002053,2]
[349975158,1737544249402,-707.77,0.0002053,2]
[349975159,1737544249412,-856.43,0.0002053,2]
[349975160,1737544249422,-2179.04,0.0002053,2]
[349975161,1737544249431,-3079.91,0.0002053,2]
[349975162,1737544249441,-500.0,0.0002053,2]
[349975163,1737544249454,-960.99,0.0002053,2]
[349975164,1737544249463,-876.18,0.0002053,2]
[349975165,1737544249473,-3241.6,0.0002053,2]
[349975166,1737544249482,-926.24,0.0002053,2]
[349975167,1737544249491,-1009.16,0.0002053,2]
[349975168,1737544249501,-571.27,0.00020531,2]
[349975169,1737544249510,-500.0,0.00020531,2]
[349975170,1737544249520,-500.0,0.00020531,2]
[349975171,1737544249529,-500.0,0.00020531,2]
[349975172,1737544249539,-500.0,0.00020531,2]
[349975173,1737544249552,-500.0,0.00020531,2]
[349975174,1737544249561,-500.0,0.00020531,2]
[349975175,1737544249571,-601.73,0.00020531,2]
[349975176,1737544249580,-500.0,0.00020531,2]
[349975177,1737544249589,-500.0,0.00020531,2]
[349975178,1737544249600,-500.0,0.00020531,2]
[349975179,1737544249609,-500.0,0.00020531,2]
[349975180,1737544249618,-716.83,0.00020531,2]
[349975181,1737544249629,-500.0,0.00020531,2]
[349975182,1737544249639,-757.92,0.00020531,2]
[349975183,1737544249648,-500.0,0.00020531,2]
[349975184,1737544249657,-523.71,0.00020531,2]
[349975185,1737544249667,-500.0,0.00020531,2]
[349975186,1737544249677,-786.76,0.00020531,2]
[349975187,1737544249686,-518.21,0.00020531,2]
[349975188,1737544249696,-500.0,0.00020531,2]
[349975189,1737544249705,-411.41,0.00020531,2]
[349975190,1737544249714,-624.23,0.00020531,2]
[349975191,1737544249723,-500.0,0.00020531,2]
[349975192,1737544249733,-500.0,0.00020531,2]
[349975193,1737544249742,-643.49,0.00020531,2]
[349975194,1737544249751,-500.0,0.00020531,2]
[349975195,1737544249761,-500.0,0.00020531,2]
[349975196,1737544249770,-500.0,0.00020531,2]
[349975197,1737544249779,-500.0,0.00020531,2]
[349975198,1737544249909,-500.0,0.00020531,2]
[349975199,1737544249934,-500.0,0.00020531,2]
[349975200,1737544249943,-291.92138929,0.00020531,2]
[349975201,1737544249953,-545.73,0.00020531,2]
[349975202,1737544249962,-500.0,0.00020531,2]
[349975203,1737544249972,-344.56445506,0.00020531,2]
[349975204,1737544249981,-500.0,0.00020531,2]
[349975205,1737544249991,-500.0,0.00020531,2]
[349975206,1737544250000,-1389.85,0.00020531,2]
[349975207,1737544250010,-1961.32,0.00020531,2]
[349975208,1737544250019,-500.0,0.00020531,2]
[349975209,1737544250028,-1067.75,0.00020531,2]
[349975210,1737544250038,-500.0,0.00020531,2]
[349975211,1737544250047,-670.3,0.00020531,2]
[349975212,1737544250056,-1183.57,0.00020531,2]
[349975213,1737544250065,-500.0,0.00020531,2]
[349975214,1737544250074,-500.0,0.00020531,2]